fUSD/lending_fUSD_20240119
["ID","MTS","AMOUNT","RATE_DAILY","PERIOD"]
[312173233,1705678271563,-500.0,0.00023013,2]
[312173234,1705678271573,-500.0,0.00023013,2]
[312173235,1705678271586,-346.64554089,0.00023013,2]
[312173236,1705678271596,-487.88921306,0.00023013,2]
[312173237,1705678271606,-500.0,0.00023013,2]
[312173238,1705678271615,-500.0,0.00023013,2]
[312173239,1705678271625,-500.0,0.00023013,2]
[312173240,1705678271635,-460.36089048,0.00023013,2]
[312173241,1705678271644,-500.0,0.00023013,2]
[312173242,1705678271653,-500.0,0.00023013,2]
[312173243,1705678271663,-500.0,0.00023013,2]
[312173244,1705678271672,-500.0,0.00023013,2]
[312173245,1705678271682,-500.0,0.00023013,2]
[312173246,1705678271691,-500.0,0.00023013,2]
[312173247,1705678271700,-500.0,0.00023013,2]
[312173248,1705678271710,-500.0,0.00023013,2]
[312173249,1705678271719,-500.0,0.00023013,2]
[312173250,1705678271728,-500.0,0.00023013,2]
[312173251,1705678271738,-214.47470962,0.00023013,2]
[312173252,1705678271747,-500.0,0.00023013,2]
[312173253,1705678271756,-500.0,0.00023013,2]
[312173254,1705678271766,-500.0,0.00023013,2]
[312173255,1705678271775,-732.74,0.00023013,2]
[312173256,1705678271784,-500.0,0.00023013,2]
[312173257,1705678271794,-299.43185593,0.00023013,2]
[312173258,1705678271803,-500.0,0.00023013,2]
[312173259,1705678271812,-529.84,0.00023013,2]
[312173260,1705678271821,-500.0,0.00023013,2]
[312173261,1705678271831,-500.0,0.00023013,2]
[312173262,1705678271841,-616.69,0.00023013,2]
[312173263,1705678271850,-500.0,0.00023013,2]
[312173264,1705678271861,-500.0,0.00023013,2]
[312173265,1705678271871,-677.43,0.00023013,2]
[312173266,1705678271880,-500.0,0.00023013,2]
[312173267,1705678271889,-500.0,0.00023013,2]
[312173268,1705678271965,-500.0,0.00023013,2]
[312173269,1705678271974,-608.76,0.00023013,2]
[312173270,1705678271983,-500.0,0.00023013,2]
[312173271,1705678271993,-500.0,0.00023013,2]
[312173272,1705678272003,-500.0,0.00023013,2]
[312173273,1705678272013,-500.0,0.00023013,2]
[312173274,1705678272024,-500.0,0.00023013,2]
[312173275,1705678272033,-500.0,0.00023013,2]
[312173276,1705678272043,-500.0,0.00023013,2]
[312173277,1705678272058,-500.0,0.00023013,2]
[312173278,1705678272067,-639.55612187,0.00023013,2]
[312173279,1705678272078,-500.0,0.00023013,2]
[312173280,1705678272088,-1029.35,0.00023013,2]
[312173281,1705678272097,-722.37,0.00023013,2]
[312173282,1705678272106,-500.0,0.00023013,2]
[312173283,1705678272115,-535.82169994,0.00023013,2]
[312173284,1705678272127,-679.74,0.00023013,2]
[312173285,1705678272136,-500.0,0.00023013,2]
[312173286,1705678272145,-500.0,0.00023013,2]
[312173287,1705678272154,-500.0,0.00023013,2]
[312173288,1705678272164,-500.0,0.00023013,2]
[312173289,1705678272174,-500.0,0.00023013,2]
[312173290,1705678272183,-500.0,0.00023013,2]
[312173291,1705678272193,-500.0,0.00023013,2]
[312173292,1705678272203,-500.0,0.00023013,2]
[312173293,1705678272212,-762.34,0.00023013,2]
[312173294,1705678272222,-500.0,0.00023013,2]
[312173295,1705678272233,-500.0,0.00023013,2]
[312173296,1705678272242,-805.61,0.00023013,2]
[312173297,1705678272251,-500.0,0.00023013,2]
[312173298,1705678272260,-1070.38,0.00023013,2]
[312173299,1705678272269,-1119.49,0.00023013,2]
[312173300,1705678272279,-500.0,0.00023013,2]
[312173301,1705678272288,-500.0,0.00023013,2]
[312173302,1705678272297,-500.0,0.00023013,2]
[312173303,1705678272307,-500.0,0.00023013,2]
[312173304,1705678272317,-500.0,0.00023013,2]
[312173305,1705678272326,-500.0,0.00023013,2]
[312173306,1705678272339,-755.31,0.00023013,2]
[312173307,1705678272350,-500.0,0.00023013,2]
[312173308,1705678272359,-545.56,0.00023013,2]
[312173309,1705678272370,-500.0,0.00023013,2]
[312173310,1705678272380,-515.29,0.00023013,2]
[312173311,1705678272389,-500.0,0.00023013,2]
[312173312,1705678272399,-500.0,0.00023013,2]
[312173313,1705678272408,-668.31,0.00023013,2]
[312173314,1705678272418,-500.0,0.00023013,2]
[312173315,1705678272428,-500.0,0.00023013,2]
[312173316,1705678272439,-625.23,0.00023013,2]
[312173317,1705678272450,-500.0,0.00023013,2]
[312173318,1705678272461,-500.0,0.00023013,2]
[312173319,1705678272471,-518.9,0.00023013,2]
[312173320,1705678272482,-649.83,0.00023013,2]
[312173321,1705678272493,-554.14,0.00023013,2]
[312173322,1705678272503,-500.0,0.00023013,2]
[312173323,1705678272514,-500.0,0.00023013,2]
[312173324,1705678272525,-800.49,0.00023013,2]
[312173325,1705678272535,-500.0,0.00023013,2]
[312173326,1705678272545,-500.0,0.00023013,2]
[312173327,1705678272555,-500.0,0.00023013,2]
[312173328,1705678272566,-585.19,0.00023013,2]
[312173329,1705678272577,-500.0,0.00023013,2]
[312173330,1705678272593,-500.0,0.00023013,2]
[312173331,1705678272604,-602.84,0.00023013,2]
[312173332,1705678272615,-452.14475273,0.00023013,2]
[312173333,1705678272627,-500.0,0.00023013,2]
[312173334,1705678272637,-500.0,0.00023013,2]
[312173335,1705678272647,-500.0,0.00023013,2]
[312173336,1705678272657,-500.0,0.00023013,2]
[312173337,1705678272668,-755.01,0.00023013,2]
[312173338,1705678272678,-500.0,0.00023013,2]
[312173339,1705678272687,-647.57,0.00023013,2]
[312173340,1705678272697,-500.0,0.00023013,2]
[312173341,1705678272706,-945.29,0.00023013,2]
[312173342,1705678272716,-500.0,0.00023013,2]
[312173343,1705678272726,-500.0,0.00023013,2]
[312173344,1705678272737,-591.96,0.00023013,2]
[312173345,1705678272747,-616.28,0.00023013,2]
[312173346,1705678272757,-500.0,0.00023013,2]
[312173347,1705678272767,-500.0,0.00023013,2]
[312173348,1705678272776,-500.0,0.00023013,2]
[312173349,1705678272786,-714.49,0.00023013,2]
[312173350,1705678272796,-500.0,0.00023013,2]
[312173351,1705678272805,-500.0,0.00023013,2]
[312173352,1705678272815,-511.42,0.00023013,2]
[312173353,1705678272825,-500.0,0.00023013,2]
[312173354,1705678272838,-500.0,0.00023013,2]
[312173355,1705678272848,-500.0,0.00023013,2]
[312173356,1705678272858,-794.31,0.00023013,2]
[312173357,1705678272868,-715.35,0.00023013,2]
[312173358,1705678272878,-500.0,0.00023013,2]
[312173359,1705678272888,-500.0,0.00023013,2]
[312173360,1705678272897,-500.0,0.00023013,2]
[312173361,1705678272907,-500.0,0.00023013,2]
[312173362,1705678272916,-500.0,0.00023013,2]
[312173363,1705678272926,-500.0,0.00023013,2]
[312173364,1705678272935,-591.89,0.00023013,2]
[312173365,1705678272945,-500.0,0.00023013,2]
[312173366,1705678272954,-500.0,0.00023013,2]
[312173367,1705678272963,-500.0,0.00023013,2]
[312173368,1705678272973,-727.12,0.00023013,2]
[312173369,1705678272982,-872.21,0.00023013,2]
[312173370,1705678272991,-500.0,0.00023013,2]
[312173371,1705678273001,-500.0,0.00023013,2]
[312173372,1705678273011,-500.0,0.00023013,2]
[312173373,1705678273023,-717.07,0.00023013,2]
[312173374,1705678273033,-500.0,0.00023013,2]
[312173375,1705678273043,-500.0,0.00023013,2]
[312173376,1705678273054,-589.35,0.00023013,2]
[312173377,1705678273065,-500.0,0.00023013,2]
[312173378,1705678273074,-500.0,0.00023013,2]
[312173379,1705678273088,-838.1,0.00023013,2]
[312173380,1705678273098,-699.17,0.00023013,2]
[312173381,1705678273108,-1054.42,0.00023013,2]
[312173382,1705678273118,-500.0,0.00023013,2]
[312173383,1705678273128,-500.0,0.00023013,2]
[312173384,1705678273138,-862.35,0.00023013,2]
[312173385,1705678273148,-519.77,0.00023013,2]
[312173386,1705678273157,-582.91437709,0.00023013,2]
[312173387,1705678273167,-500.0,0.00023013,2]
[312173388,1705678273176,-500.0,0.00023013,2]
[312173389,1705678273186,-903.53,0.00023013,2]
[312173390,1705678273195,-695.15,0.00023013,2]
[312173391,1705678273204,-507.74,0.00023013,2]
[312173392,1705678273214,-567.11615892,0.00023013,7]
[312173393,1705678273223,-500.0,0.00023013,2]
[312173394,1705678273233,-500.0,0.00023013,2]
[312173395,1705678273242,-545.49,0.00023013,2]
[312173396,1705678273251,-500.0,0.00023013,2]
[312173397,1705678273260,-500.0,0.00023013,2]
[312173398,1705678273270,-500.0,0.00023013,2]
[312173399,1705678273278,-563.38,0.00023013,2]
[312173400,1705678273288,-500.0,0.00023013,2]
[312173401,1705678273297,-635.14,0.00023013,2]
[312173402,1705678273306,-679.28,0.00023013,2]
[312173403,1705678273315,-500.0,0.00023013,2]
[312173404,1705678273325,-500.0,0.00023013,2]
[312173405,1705678273337,-500.0,0.00023013,2]
[312173406,1705678273347,-518.65,0.00023013,2]
[312173407,1705678273356,-659.28,0.00023013,2]
[312173408,1705678273366,-761.1,0.00023013,2]
[312173409,1705678273375,-500.0,0.00023013,2]
[312173410,1705678273385,-750.39,0.00023013,2]
[312173411,1705678273394,-500.0,0.00023013,2]
[312173412,1705678273404,-500.0,0.00023013,2]
[312173413,1705678273414,-680.1,0.00023013,2]
[312173414,1705678273423,-579.31,0.00023013,2]
[312173415,1705678273433,-500.0,0.00023013,2]
[312173416,1705678273443,-500.0,0.00023013,2]
[312173417,1705678273453,-627.26,0.00023013,2]
[312173418,1705678273464,-766.95,0.00023013,2]
[312173419,1705678273473,-500.0,0.00023013,2]
[312173420,1705678273482,-849.95,0.00023013,2]
[312173421,1705678273492,-500.0,0.00023013,2]
[312173422,1705678273501,-588.93,0.00023013,2]
[312173423,1705678273512,-500.0,0.00023013,2]
[312173424,1705678273521,-500.0,0.00023013,2]
[312173425,1705678273531,-829.52,0.00023013,2]
[312173426,1705678273541,-2495.55,0.00023013,2]
[312173427,1705678273551,-788.2,0.00023013,2]
[312173428,1705678273561,-731.33,0.00023013,2]
[312173429,1705678273570,-500.0,0.00023013,2]
[312173430,1705678273583,-500.0,0.00023013,2]
[312173431,1705678273592,-500.0,0.00023013,2]
[312173432,1705678273602,-500.0,0.00023013,2]
[312173433,1705678273611,-500.0,0.00023013,2]
[312173434,1705678273622,-634.89,0.00023013,2]
[312173435,1705678273631,-791.03,0.00023013,2]
[312173436,1705678273642,-500.0,0.00023013,2]
[312173437,1705678273652,-500.0,0.00023013,2]
[312173438,1705678273662,-1759.05,0.00023013,2]
[312173439,1705678273671,-645.26,0.00023013,2]
[312173440,1705678273680,-687.51,0.00023013,2]
[312173441,1705678273689,-500.0,0.00023013,2]
[312173442,1705678273699,-500.0,0.00023013,2]
[312173443,1705678273708,-500.0,0.00023013,2]
[312173444,1705678273718,-500.0,0.00023013,2]
[312173445,1705678273727,-542.98,0.00023013,2]
[312173446,1705678273738,-684.71,0.00023013,2]
[312173447,1705678273747,-713.71,0.00023013,2]
[312173448,1705678273757,-911.28,0.00023013,2]
[312173449,1705678273767,-616.72,0.00023013,2]
[312173450,1705678273777,-500.0,0.00023013,2]
[312173451,1705678273787,-500.0,0.00023013,2]
[312173452,1705678273796,-500.0,0.00023013,2]
[312173453,1705678273806,-889.99,0.00023013,2]
[312173454,1705678273816,-577.21,0.00023013,2]
[312173455,1705678273825,-500.0,0.00023013,2]
[312173456,1705678273841,-508.68,0.00023013,2]
[312173457,1705678273851,-549.42,0.00023013,2]
[312173458,1705678273861,-957.59,0.00023013,2]
[312173459,1705678273871,-500.0,0.00023013,2]
[312173460,1705678273882,-1588.65,0.00023013,2]
[312173461,1705678273892,-500.0,0.00023013,2]
[312173462,1705678273903,-500.0,0.00023013,2]
[312173463,1705678273913,-500.0,0.00023013,2]
[312173464,1705678273923,-500.0,0.00023013,2]
[312173465,1705678273932,-874.67,0.00023013,2]
[312173466,1705678273942,-500.0,0.00023013,2]
[312173467,1705678273952,-500.0,0.00023013,2]
[312173468,1705678273961,-500.0,0.00023013,2]
[312173469,1705678273971,-500.0,0.00023013,2]
[312173470,1705678273980,-500.0,0.00023013,2]
[312173471,1705678273990,-500.0,0.00023013,2]
[312173472,1705678274000,-500.0,0.00023013,2]
[312173473,1705678274009,-500.0,0.00023013,2]
[312173474,1705678274020,-973.68,0.00023013,2]
[312173475,1705678274030,-2586.47,0.00023013,2]
[312173476,1705678274040,-512.93,0.00023013,2]
[312173477,1705678274051,-798.26,0.00023013,2]
[312173478,1705678274062,-500.0,0.00023013,2]
[312173479,1705678274073,-163.02,0.00023013,2]
[312173480,1705678274087,-1209.83,0.00023013,2]
[312173481,1705678274097,-642.84,0.00023013,2]
[312173482,1705678274107,-500.0,0.00023013,2]
[312173483,1705678274119,-936.38,0.00023013,2]
[312173484,1705678274130,-500.0,0.00023013,2]
[312173485,1705678274141,-1155.52,0.00023013,2]
[312173486,1705678274151,-500.0,0.00023013,2]
[312173487,1705678274161,-508.85,0.00023013,2]
[312173488,1705678274171,-500.0,0.00023013,2]
[312173489,1705678274181,-874.6,0.00023013,2]
[312173490,1705678274191,-1683.81,0.00023013,2]
[312173491,1705678274200,-500.0,0.00023013,2]
[312173492,1705678274210,-1101.12,0.00023013,2]
[312173493,1705678274220,-1902.57,0.00023013,2]
[312173494,1705678274230,-1649.75,0.00023013,2]
[312173495,1705678274240,-500.0,0.00023013,2]
[312173496,1705678274250,-500.0,0.00023013,2]
[312173497,1705678274261,-1427.46,0.00023013,2]
[312173498,1705678274271,-500.0,0.00023013,2]
[312173499,1705678274281,-500.0,0.00023013,2]
[312173500,1705678274290,-693.46,0.00023013,2]
[312173501,1705678274299,-782.46,0.00023013,2]
[312173502,1705678274309,-2523.58,0.00023013,2]
[312173503,1705678274319,-798.73,0.00023013,2]
[312173504,1705678274329,-500.0,0.00023013,2]
[312173505,1705678274344,-2927.77,0.00023013,2]
[312173506,1705678274354,-500.0,0.00023013,2]
[312173507,1705678274364,-500.0,0.00023013,2]
[312173508,1705678274373,-500.0,0.00023013,2]
[312173509,1705678274383,-558.05,0.00023013,2]
[312173510,1705678274393,-1720.68,0.00023013,2]
[312173511,1705678274403,-1245.53,0.00023013,2]
[312173512,1705678274413,-500.0,0.00023013,2]
[312173513,1705678274422,-1313.85,0.00023013,2]
[312173514,1705678274431,-500.0,0.00023013,2]
[312173515,1705678274441,-1065.88,0.00023013,2]
[312173516,1705678274450,-500.0,0.00023013,2]
[312173517,1705678274460,-1751.08,0.00023013,2]
[312173518,1705678274470,-500.0,0.00023013,2]
[312173519,1705678274480,-652.01,0.00023013,2]
[312173520,1705678274490,-500.0,0.00023013,2]
[312173521,1705678274499,-500.0,0.00023013,2]
[312173522,1705678274509,-616.53,0.00023013,2]
[312173523,1705678274519,-500.0,0.00023013,2]
[312173524,1705678274528,-854.13,0.00023013,2]
[312173525,1705678274538,-4654.98,0.00023013,2]
[312173526,1705678274548,-1355.37,0.00023013,2]
[312173527,1705678274558,-500.0,0.00023013,2]
[312173528,1705678274568,-688.22,0.00023013,2]
[312173529,1705678274577,-500.0,0.00023013,2]
[312173530,1705678274592,-500.0,0.00023013,2]
[312173531,1705678274602,-861.68,0.00023013,2]
[312173532,1705678274611,-614.59,0.00023013,2]
[312173533,1705678274621,-500.0,0.00023013,2]
[312173534,1705678274631,-723.49,0.00023013,2]
[312173535,1705678274640,-899.05,0.00023013,2]
[312173536,1705678274650,-500.0,0.00023013,2]
[312173537,1705678274660,-4897.22,0.00023013,2]
[312173538,1705678274669,-500.0,0.00023013,2]
[312173539,1705678274679,-1831.94,0.00023013,2]
[312173540,1705678274688,-852.38,0.00023013,2]
[312173541,1705678274698,-500.0,0.00023013,2]
[312173542,1705678274708,-705.55,0.00023013,2]
[312173543,1705678274717,-715.8,0.00023013,2]
[312173544,1705678274727,-1635.03,0.00023013,2]
[312173545,1705678274736,-544.37,0.00023013,2]
[312173546,1705678274746,-952.15,0.00023013,2]
[312173547,1705678274756,-757.76,0.00023013,2]
[312173548,1705678274765,-1958.54,0.00023013,2]
[312173549,1705678274775,-500.0,0.00023013,2]
[312173550,1705678274785,-975.91,0.00023013,2]
[312173551,1705678274794,-500.0,0.00023013,2]
[312173552,1705678274803,-2022.58,0.00023013,2]
[312173553,1705678274812,-500.0,0.00023013,2]
[312173554,1705678274821,-701.67,0.00023013,2]
[312173555,1705678274833,-6494.5,0.00023013,2]
[312173556,1705678274842,-1219.57,0.00023013,2]
[312173557,1705678274851,-500.0,0.00023013,2]
[312173558,1705678274861,-1253.16,0.00023013,2]
[312173559,1705678274870,-1300.08,0.00023013,2]
[312173560,1705678274879,-3234.69,0.00023013,2]
[312173561,1705678274889,-500.0,0.00023013,2]
[312173562,1705678274899,-500.0,0.00023013,2]
[312173563,1705678274908,-9572.5,0.00023013,2]
[312173564,1705678274917,-565.57,0.00023013,2]
[312173565,1705678274927,-7806.92,0.00023013,2]
[312173566,1705678274936,-500.0,0.00023013,2]
[312173567,1705678274945,-816.31,0.00023013,2]
[312173568,1705678274955,-2361.38,0.00023013,2]
[312173569,1705678274964,-500.0,0.00023013,2]
[312173570,1705678274974,-1402.34,0.00023013,2]
[312173571,1705678274984,-2376.67,0.00023013,2]
[312173572,1705678274993,-500.0,0.00023013,2]
[312173573,1705678275003,-500.0,0.00023013,2]
[312173574,1705678275012,-534.94,0.00023013,2]
[312173575,1705678275024,-610.32,0.00023013,2]
[312173576,1705678275033,-591.69,0.00023013,2]
[312173577,1705678275042,-500.0,0.00023013,2]
[312173578,1705678275052,-717.79,0.00023013,2]
[312173579,1705678275061,-623.99,0.00023013,2]
[312173580,1705678275071,-1362.82,0.00023013,2]
[312173581,1705678275083,-598.75,0.00023013,2]
[312173582,1705678275093,-500.0,0.00023013,2]
[312173583,1705678275102,-519.07665973,0.00023013,2]
[312173584,1705678275112,-19099.25,0.00023013,2]
[312173585,1705678275122,-4157.3,0.00023013,2]
[312173586,1705678275133,-500.0,0.00023013,2]
[312173587,1705678275143,-2771.57,0.00023013,2]
[312173588,1705678275152,-500.0,0.00023013,2]
[312173589,1705678275162,-1045.96,0.00023013,2]
[312173590,1705678275171,-411.34,0.00023013,2]
[312173591,1705678275180,-12697.96,0.00023013,2]
[312173592,1705678275190,-500.0,0.00023013,2]
[312173593,1705678275200,-571.57,0.00023013,2]
[312173594,1705678275209,-511.47,0.00023013,2]
[312173595,1705678275219,-1964.65,0.00023013,2]
[312173596,1705678275230,-500.0,0.00023013,2]
[312173597,1705678275240,-1098.53,0.00023013,2]
[312173598,1705678275250,-1348.5,0.00023013,2]
[312173599,1705678275259,-2100.0,0.00023013,2]
[312173600,1705678275268,-2445.96,0.00023013,2]
[312173601,1705678275278,-949.39,0.00023013,2]
[312173602,1705678275287,-1269.53,0.00023013,2]
[312173603,1705678275296,-500.0,0.00023013,2]
[312173604,1705678275306,-395.7149727,0.00023013,2]
[312173605,1705678275316,-942.89,0.00023013,2]
[312173606,1705678275326,-529.86,0.00023013,2]
[312173607,1705678275337,-500.0,0.00023013,2]
[312173608,1705678275346,-1371.23,0.00023013,2]
[312173609,1705678275356,-610.34,0.00023013,2]
[312173610,1705678275366,-769.96,0.00023013,2]
[312173611,1705678275375,-2348.96,0.00023013,2]
[312173612,1705678275384,-1842.12,0.00023013,2]
[312173613,1705678275394,-500.0,0.00023013,2]
[312173614,1705678275404,-500.0,0.00023013,2]
[312173615,1705678275413,-681.74,0.00023013,2]
[312173616,1705678275422,-2360.64,0.00023013,2]
[312173617,1705678275432,-566.01,0.00023013,2]
[312173618,1705678275441,-3098.94,0.00023013,2]
[312173619,1705678275451,-677.65,0.00023013,2]
[312173620,1705678275460,-848.48,0.00023013,2]
[312173621,1705678275470,-1127.71,0.00023013,2]
[312173622,1705678275479,-676.33,0.00023013,2]
[312173623,1705678275488,-1350.13,0.00023013,2]
[312173624,1705678275497,-500.0,0.00023013,2]
[312173625,1705678275507,-1745.76,0.00023013,2]
[312173626,1705678275516,-1044.1,0.00023013,2]
[312173627,1705678275526,-476.73516387,0.00023013,2]
[312173628,1705678275536,-1150.91,0.00023013,2]
[312173629,1705678275545,-1230.61,0.00023013,2]
[312173630,1705678275555,-576.08,0.00023013,2]
[312173631,1705678275569,-500.0,0.00023013,2]
[312173632,1705678275579,-500.0,0.00023013,2]
[312173633,1705678275593,-1856.19,0.00023013,2]
[312173634,1705678275603,-1448.18,0.00023013,2]
[312173635,1705678275613,-1106.0,0.00023013,2]
[312173636,1705678275623,-500.0,0.00023013,2]
[312173637,1705678275633,-1237.53,0.00023013,2]
[312173638,1705678275643,-739.48,0.00023013,2]
[312173639,1705678275652,-500.0,0.00023013,2]
[312173640,1705678275664,-975.36,0.00023013,2]
[312173641,1705678275673,-2784.75,0.00023013,2]
[312173642,1705678275683,-744.99,0.00023013,2]
[312173643,1705678275694,-2811.82,0.00023013,2]
[312173644,1705678275703,-500.0,0.00023013,2]
[312173645,1705678275713,-500.0,0.00023013,2]
[312173646,1705678275723,-2078.94,0.00023013,2]
[312173647,1705678275732,-10549.01,0.00023013,2]
[312173648,1705678275741,-500.0,0.00023013,2]
[312173649,1705678275752,-1479.97,0.00023013,2]
[312173650,1705678275762,-1243.23,0.00023013,2]
[312173651,1705678275771,-730.99,0.00023013,2]
[312173652,1705678275780,-5004.8,0.00023013,2]
[312173653,1705678275789,-1125.39,0.00023013,2]
[312173654,1705678275799,-716.2,0.00023013,2]
[312173655,1705678275808,-743.57,0.00023013,2]
[312173656,1705678275818,-500.0,0.00023013,2]
[312173657,1705678275828,-500.0,0.00023013,2]
[312173658,1705678275840,-1150.08,0.00023013,2]
[312173659,1705678275849,-547.1,0.00023013,2]
[312173660,1705678275859,-1113.73,0.00023013,2]
[312173661,1705678275869,-500.0,0.00023013,2]
[312173662,1705678275879,-826.5,0.00023013,2]
[312173663,1705678275889,-500.0,0.00023013,2]
[312173664,1705678275899,-1154.17,0.00023013,2]
[312173665,1705678275909,-3340.4,0.00023013,2]
[312173666,1705678275918,-500.0,0.00023013,2]
[312173667,1705678275928,-693.95,0.00023013,2]
[312173668,1705678275938,-1747.58,0.00023013,2]
[312173669,1705678275947,-776.7,0.00023013,2]
[312173670,1705678275957,-711.65,0.00023013,2]
[312173671,1705678275967,-2672.86,0.00023013,2]
[312173672,1705678275976,-500.0,0.00023013,2]
[312173673,1705678275986,-1055.87,0.00023013,2]
[312173674,1705678275995,-517.38,0.00023013,2]
[312173675,1705678276005,-722.82,0.00023013,2]
[312173676,1705678276015,-4742.2,0.00023013,2]
[312173677,1705678276026,-5753.61,0.00023013,2]
[312173678,1705678276036,-500.0,0.00023013,2]
[312173679,1705678276047,-1381.2,0.00023013,2]
[312173680,1705678276057,-517.67,0.00023013,2]
[312173681,1705678276067,-777.57,0.00023013,2]
[312173682,1705678276077,-1473.76,0.00023013,2]
[312173683,1705678276089,-500.0,0.00023013,2]
[312173684,1705678276098,-1037.7,0.00023013,2]
[312173685,1705678276108,-500.0,0.00023013,2]
[312173686,1705678276118,-500.0,0.00023013,2]
[312173687,1705678276130,-2333.34,0.00023013,2]
[312173688,1705678276141,-570.31,0.00023013,2]
[312173689,1705678276151,-542.82,0.00023013,2]
[312173690,1705678276160,-1929.89,0.00023013,2]
[312173691,1705678276169,-564.38,0.00023013,2]
[312173692,1705678276301,-2379.06,0.00023013,2]
[312173693,1705678276311,-500.0,0.00023013,2]
[312173694,1705678276321,-500.0,0.00023013,5]
[312173695,1705678276331,-859.94,0.00023013,2]
[312173696,1705678276343,-648.08,0.00023013,2]
[312173697,1705678276354,-680.47,0.00023013,2]
[312173698,1705678276364,-1380.56,0.00023013,2]
[312173699,1705678276374,-1362.21,0.00023013,2]
[312173700,1705678276384,-1026.83,0.00023013,2]
[312173701,1705678276395,-745.48,0.00023013,2]
[312173702,1705678276405,-2959.43,0.00023013,2]
[312173703,1705678276416,-688.12,0.00023013,2]
[312173704,1705678276426,-500.0,0.00023013,2]
[312173705,1705678276436,-1109.11,0.00023013,2]
[312173706,1705678276445,-1406.22,0.00023013,2]
[312173707,1705678276455,-4341.8,0.00023013,2]
[312173708,1705678276465,-503.34,0.00023013,2]
[312173709,1705678276475,-500.0,0.00023013,2]
[312173710,1705678276485,-1036.56,0.00023013,2]
[312173711,1705678276496,-500.0,0.00023013,2]
[312173712,1705678276506,-500.0,0.00023013,2]
[312173713,1705678276515,-833.62,0.00023013,2]
[312173714,1705678276526,-4679.12,0.00023013,2]
[312173715,1705678276536,-821.08,0.00023013,2]
[312173716,1705678276547,-668.1,0.00023013,2]
[312173717,1705678276557,-1148.48,0.00023013,2]
[312173718,1705678276567,-787.79,0.00023013,2]
[312173719,1705678276578,-766.81,0.00023013,2]
[312173720,1705678276592,-2555.85,0.00023013,2]
[312173721,1705678276602,-15389.13,0.00023013,2]
[312173722,1705678276612,-561.4,0.00023013,2]
[312173723,1705678276622,-1090.18,0.00023013,2]
[312173724,1705678276632,-1440.08,0.00023013,2]
[312173725,1705678276641,-500.0,0.00023013,2]
[312173726,1705678276654,-500.0,0.00023013,2]
[312173727,1705678276663,-500.0,0.00023013,2]
[312173728,1705678276674,-500.0,0.00023013,2]
[312173729,1705678276683,-500.0,0.00023013,2]
[312173730,1705678276693,-928.69,0.00023013,2]
[312173731,1705678276703,-661.75,0.00023013,2]
[312173732,1705678276713,-500.0,0.00023013,2]